fUSD/lending_fUSD_20250128
["ID","MTS","AMOUNT","RATE_DAILY","PERIOD"]
[350683290,1738060246706,-959.26,0.00018997,2]
[350683291,1738060246715,-500.0,0.00018997,2]
[350683292,1738060246724,-500.0,0.00018997,2]
[350683293,1738060246733,-500.0,0.00018997,2]
[350683294,1738060246742,-500.0,0.00018997,2]
[350683295,1738060246751,-500.0,0.00018997,2]
[350683296,1738060246761,-500.0,0.00018997,2]
[350683297,1738060246770,-500.0,0.00018997,2]
[350683298,1738060246779,-500.0,0.00018997,2]
[350683299,1738060246788,-500.0,0.00018997,2]
[350683300,1738060246798,-500.0,0.00018997,2]
[350683301,1738060246808,-1350.03,0.00018997,2]
[350683302,1738060246818,-500.0,0.00018997,2]
[350683303,1738060246827,-500.0,0.00018997,2]
[350683304,1738060246837,-500.0,0.00018997,2]
[350683305,1738060246846,-500.0,0.00018997,2]
[350683306,1738060246855,-500.0,0.00018997,2]
[350683307,1738060246864,-1283.68,0.00018997,2]
[350683308,1738060246873,-500.0,0.00018997,2]
[350683309,1738060246883,-500.0,0.00018997,2]
[350683310,1738060247009,-542.56754602,0.00018997,2]
[350683311,1738060247018,-877.14,0.00018997,2]
[350683312,1738060247027,-500.0,0.00018997,2]
[350683313,1738060247036,-704.12,0.00018997,2]
[350683314,1738060247045,-599.29,0.00018997,2]
[350683315,1738060247054,-500.0,0.00018997,2]
[350683316,1738060247062,-644.11,0.00018997,2]
[350683317,1738060247071,-500.0,0.00018997,2]
[350683318,1738060247080,-500.0,0.00018997,2]
[350683319,1738060247090,-500.0,0.00018997,2]
[350683320,1738060247099,-842.75,0.00018997,2]
[350683321,1738060247107,-500.0,0.00018997,2]
[350683322,1738060247116,-896.34,0.00018997,2]
[350683323,1738060247125,-500.0,0.00018997,2]
[350683324,1738060247134,-500.0,0.00018997,2]
[350683325,1738060247143,-827.19,0.00018997,2]
[350683326,1738060247151,-500.0,0.00018997,2]
[350683327,1738060247161,-500.0,0.00018997,2]
[350683328,1738060247170,-500.0,0.00018997,2]
[350683329,1738060247178,-500.0,0.00018997,2]
[350683330,1738060247187,-500.0,0.00018997,2]
[350683331,1738060247196,-639.14,0.00018997,2]
[350683332,1738060247204,-735.98,0.00018997,2]
[350683333,1738060247213,-500.0,0.00018997,2]
[350683334,1738060247222,-769.09,0.00018997,2]
[350683335,1738060247231,-500.0,0.00018997,2]
[350683336,1738060247240,-500.0,0.00018997,2]
[350683337,1738060247249,-500.0,0.00018997,2]
[350683338,1738060247257,-763.88,0.00018997,2]
[350683339,1738060247266,-500.0,0.00018997,2]
[350683340,1738060247276,-780.27,0.00018997,2]
[350683341,1738060247284,-1080.56,0.00018997,2]
[350683342,1738060247294,-751.01,0.00018997,2]
[350683343,1738060247303,-872.72,0.00018997,2]
[350683344,1738060247312,-500.0,0.00018997,2]
[350683345,1738060247321,-748.86,0.00018997,2]
[350683346,1738060247330,-500.0,0.00018997,2]
[350683347,1738060247339,-500.0,0.00018997,2]
[350683348,1738060247348,-500.0,0.00018997,2]
[350683349,1738060247357,-500.0,0.00018997,2]
[350683350,1738060247366,-500.0,0.00018997,2]
[350683351,1738060247375,-1052.51,0.00018997,2]
[350683352,1738060247384,-500.0,0.00018997,2]
[350683353,1738060247393,-500.0,0.00018997,2]
[350683354,1738060247402,-500.0,0.00018997,2]
[350683355,1738060247411,-500.0,0.00018997,2]
[350683356,1738060247420,-500.0,0.00018997,2]
[350683357,1738060247429,-500.0,0.00018997,2]
[350683358,1738060247438,-706.54,0.00018997,2]
[350683359,1738060247447,-507.51,0.00018997,2]
[350683360,1738060247456,-500.0,0.00018997,2]
[350683361,1738060247465,-500.0,0.00018997,2]
[350683362,1738060247474,-849.52,0.00018997,2]
[350683363,1738060247483,-500.0,0.00018997,2]
[350683364,1738060247492,-1383.36,0.00018997,2]
[350683365,1738060247501,-500.0,0.00018997,2]
[350683366,1738060247511,-664.72,0.00018997,2]
[350683367,1738060247520,-830.92,0.00018997,2]
[350683368,1738060247529,-500.0,0.00018997,2]
[350683369,1738060247539,-500.0,0.00018997,2]
[350683370,1738060247548,-786.12,0.00018997,2]
[350683371,1738060247558,-741.69,0.00018997,2]
[350683372,1738060247567,-500.0,0.00018997,2]
[350683373,1738060247580,-819.24,0.00018997,2]
[350683374,1738060247590,-653.24,0.00018997,2]
[350683375,1738060247602,-691.35,0.00018997,2]
[350683376,1738060247616,-500.0,0.00018997,2]
[350683377,1738060247626,-1115.86,0.00018997,2]
[350683378,1738060247637,-668.96,0.00018997,2]
[350683379,1738060247646,-500.0,0.00018997,2]
[350683380,1738060247656,-500.0,0.00018997,2]
[350683381,1738060247667,-869.86,0.00018997,2]
[350683382,1738060247676,-615.04,0.00018997,2]
[350683383,1738060247686,-1434.33,0.00018997,2]
[350683384,1738060247695,-655.64,0.00018997,2]
[350683385,1738060247704,-1151.39,0.00018997,2]
[350683386,1738060247713,-500.0,0.00018997,2]
[350683387,1738060247723,-854.96,0.00018997,2]
[350683388,1738060247733,-727.35,0.00018997,2]
[350683389,1738060247742,-1824.35,0.00018997,2]
[350683390,1738060247751,-869.54,0.00018997,2]
[350683391,1738060247760,-1258.26,0.00018997,2]
[350683392,1738060247770,-500.0,0.00018997,2]
[350683393,1738060247779,-1733.52,0.00018997,2]
[350683394,1738060247789,-836.85,0.00018997,2]
[350683395,1738060247799,-500.0,0.00018997,2]
[350683396,1738060247808,-700.0,0.00019,2]
[350683397,1738060247818,-192387.05044402,0.00019,2]
[350683398,1738060247827,-528.43762445,0.00019068,2]
[350683399,1738060247836,-500.0,0.0001909,2]
[350683400,1738060247846,-181.0,0.00019108,2]
[350683401,1738060247855,-500.0,0.00019146,2]
[350683402,1738060247865,-528.43762445,0.00019151,2]
[350683403,1738060247874,-560.77491772,0.00019178,18]
[350683404,1738060247883,-150.0,0.00019178,2]
[350683405,1738060247893,-500.0,0.0001919,2]
[350683406,1738060247902,-181.22079131,0.00019194,2]
[350683407,1738060247911,-166.7653668,0.00019194,2]
[350683408,1738060247920,-500.0,0.00019194,2]
[350683409,1738060247930,-671.61,0.00019194,2]
[350683410,1738060247939,-1654.7,0.00019194,2]
[350683411,1738060247948,-1508.67,0.00019194,2]
[350683412,1738060247957,-9185.3058,0.00019195,2]
[350683413,1738060247966,-500.0,0.00019196,2]
[350683414,1738060247975,-500.0,0.00019196,2]
[350683415,1738060247985,-500.0,0.00019196,2]
[350683416,1738060247994,-500.0,0.00019196,2]
[350683417,1738060248003,-12767.93224106,0.00019196,2]
[350683418,1738060248012,-150.0,0.00019244,2]
[350683419,1738060248021,-150.0,0.00019248,2]
[350683420,1738060248031,-528.43762445,0.0001926,2]
[350683421,1738060248040,-150.0,0.00019269,2]
[350683422,1738060248050,-500.0,0.00019273,2]
[350683423,1738060248060,-64715.00841781,0.00019274,2]
[350683424,1738060248070,-12767.93224102,0.00019274,2]
[350683425,1738060248079,-150.0,0.00019278,2]
[350683426,1738060248088,-150.0,0.00019278,2]
[350683427,1738060248097,-150.0,0.00019281,2]
[350683428,1738060248106,-150.0,0.00019283,2]
[350683429,1738060248115,-150.0,0.00019287,2]
[350683430,1738060248125,-500.0,0.0001929,2]
[350683431,1738060248135,-510.13,0.00019293,2]
[350683432,1738060248143,-500.0,0.00019293,2]
[350683433,1738060248152,-218.35843534,0.00019293,2]
[350683434,1738060248161,-500.0,0.00019293,2]
[350683435,1738060248171,-500.0,0.00019293,2]
[350683436,1738060248180,-500.0,0.00019293,2]
[350683437,1738060248189,-609.18,0.00019293,2]
[350683438,1738060248198,-500.0,0.00019293,2]
[350683439,1738060248207,-500.0,0.00019293,2]
[350683440,1738060248216,-791.18,0.00019293,2]
[350683441,1738060248225,-1508.33,0.00019293,2]
[350683442,1738060248235,-500.0,0.00019293,2]
[350683443,1738060248245,-500.0,0.00019293,2]
[350683444,1738060248254,-500.0,0.00019293,2]
[350683445,1738060248263,-500.0,0.00019293,2]
[350683446,1738060248272,-500.0,0.00019293,2]
[350683447,1738060248281,-636.06,0.00019293,2]
[350683448,1738060248291,-500.0,0.00019293,2]
[350683449,1738060248300,-500.0,0.00019293,2]
[350683450,1738060248310,-500.0,0.00019293,2]
[350683451,1738060248319,-500.0,0.00019293,2]
[350683452,1738060248328,-582.6,0.00019293,2]
[350683453,1738060248337,-500.0,0.00019293,2]
[350683454,1738060248347,-500.0,0.00019293,2]
[350683455,1738060248356,-500.0,0.00019293,2]
[350683456,1738060248365,-500.0,0.00019293,2]
[350683457,1738060248374,-500.0,0.00019293,2]
[350683458,1738060248384,-500.0,0.00019293,2]
[350683459,1738060248393,-500.0,0.00019293,2]
[350683460,1738060248402,-500.0,0.00019293,2]
[350683461,1738060248411,-500.0,0.00019293,2]
[350683462,1738060248420,-500.0,0.00019293,2]
[350683463,1738060248430,-500.0,0.00019293,2]
[350683464,1738060248439,-500.0,0.00019293,2]
[350683465,1738060248449,-621.96,0.00019293,2]
[350683466,1738060248554,-500.0,0.00019293,2]
[350683467,1738060248564,-500.0,0.00019293,2]
[350683468,1738060248577,-500.0,0.00019293,2]
[350683469,1738060248591,-500.0,0.00019293,2]
[350683470,1738060248600,-892.91,0.00019293,2]
[350683471,1738060248609,-562.57,0.00019293,2]
[350683472,1738060248620,-500.0,0.00019293,2]
[350683473,1738060248629,-722.61,0.00019293,2]
[350683474,1738060248638,-500.0,0.00019293,2]
[350683475,1738060248647,-500.0,0.00019293,2]
[350683476,1738060248657,-500.0,0.00019293,2]
[350683477,1738060248666,-500.0,0.00019293,2]
[350683478,1738060248675,-500.0,0.00019293,2]
[350683479,1738060248685,-1702.91,0.00019293,2]
[350683480,1738060248694,-500.0,0.00019293,2]
[350683481,1738060248703,-500.0,0.00019293,2]
[350683482,1738060248712,-500.0,0.00019293,2]
[350683483,1738060248721,-865.13,0.00019293,2]
[350683484,1738060248731,-1186.69,0.00019293,2]
[350683485,1738060248740,-500.0,0.00019293,2]
[350683486,1738060248749,-500.0,0.00019293,2]
[350683487,1738060248759,-500.0,0.00019293,2]
[350683488,1738060248768,-2519.34,0.00019293,2]
[350683489,1738060248779,-948.58,0.00019293,2]
[350683490,1738060248788,-550.57856949,0.00019293,2]
[350683491,1738060248797,-1158.14,0.00019293,2]
[350683492,1738060248807,-500.0,0.00019293,2]
[350683493,1738060248817,-1060.43,0.00019293,2]
[350683494,1738060248826,-1052.27,0.00019293,2]
[350683495,1738060248835,-1000.0,0.00019293,2]
[350683496,1738060248844,-1293.39,0.00019293,2]
[350683497,1738060248854,-1338.87,0.00019293,2]
[350683498,1738060248864,-215.01030729,0.00019293,2]
[350683499,1738060248873,-500.0,0.00019293,2]
[350683500,1738060248882,-780.06,0.00019293,2]
[350683501,1738060248891,-2657.89,0.00019293,2]
[350683502,1738060248900,-517.63548313,0.00019293,2]
[350683503,1738060248910,-500.0,0.00019293,2]
[350683504,1738060248920,-975.39,0.00019293,2]
[350683505,1738060248930,-560.52538524,0.00019293,2]
[350683506,1738060248940,-500.0,0.00019293,2]
[350683507,1738060248950,-914.58,0.00019293,2]
[350683508,1738060248960,-500.0,0.00019293,2]
[350683509,1738060248970,-500.0,0.00019293,2]
[350683510,1738060248981,-500.0,0.00019293,2]
[350683511,1738060248990,-500.0,0.00019293,2]
[350683512,1738060249001,-507.37728165,0.00019293,2]
[350683513,1738060249011,-500.0,0.00019293,2]
[350683514,1738060249021,-1912.51,0.00019293,2]
[350683515,1738060249032,-513.67546079,0.00019293,2]
[350683516,1738060249042,-501.31107372,0.00019293,2]
[350683517,1738060249052,-500.0,0.00019293,2]
[350683518,1738060249061,-500.0,0.00019293,2]
[350683519,1738060249071,-1733.1,0.00019293,2]
[350683520,1738060249081,-1085.13,0.00019293,2]
[350683521,1738060249091,-671.61,0.00019293,2]
[350683522,1738060249101,-1396.95,0.00019293,2]
[350683523,1738060249111,-500.0,0.00019293,2]
[350683524,1738060249121,-1654.7,0.00019293,2]
[350683525,1738060249130,-1508.67,0.00019293,2]
[350683526,1738060249140,-994.95,0.00019293,2]
[350683527,1738060249151,-500.0,0.00019293,2]
[350683528,1738060249160,-500.0,0.00019293,2]
[350683529,1738060249170,-500.0,0.00019293,2]
[350683530,1738060249179,-500.0,0.00019293,2]
[350683531,1738060249189,-500.0,0.00019293,2]
[350683532,1738060249199,-500.0,0.00019293,2]
[350683533,1738060249210,-1865.47,0.00019293,2]
[350683534,1738060249219,-605.30281423,0.00019294,2]
[350683535,1738060249229,-500.0,0.00019294,2]
[350683536,1738060249238,-500.0,0.00019294,2]
[350683537,1738060249248,-500.0,0.00019294,2]
[350683538,1738060249259,-500.0,0.00019294,2]
[350683539,1738060249268,-500.0,0.00019294,2]
[350683540,1738060249277,-500.0,0.00019294,2]
[350683541,1738060249287,-591.9,0.00019294,2]
[350683542,1738060249296,-190.65957529,0.00019294,2]
[350683543,1738060249306,-500.0,0.00019294,2]
[350683544,1738060249315,-500.0,0.00019294,2]
[350683545,1738060249325,-500.0,0.00019294,2]
[350683546,1738060249334,-500.0,0.00019294,2]
[350683547,1738060249343,-500.0,0.00019294,2]
[350683548,1738060249352,-500.0,0.00019294,2]
[350683549,1738060249362,-500.0,0.00019294,2]
[350683550,1738060249371,-500.0,0.00019294,2]
[350683551,1738060249380,-637.17,0.00019294,2]
[350683552,1738060249389,-500.0,0.00019294,2]
[350683553,1738060249398,-500.0,0.00019294,2]
[350683554,1738060249407,-500.0,0.00019294,2]
[350683555,1738060249416,-500.0,0.00019294,2]
[350683556,1738060249425,-500.0,0.00019294,2]
[350683557,1738060249435,-500.0,0.00019294,2]
[350683558,1738060249444,-500.0,0.00019294,2]
[350683559,1738060249453,-500.0,0.00019294,2]
[350683560,1738060249463,-756.49,0.00019294,2]
[350683561,1738060249472,-500.0,0.00019294,2]
[350683562,1738060249481,-500.0,0.00019294,2]
[350683563,1738060249490,-500.0,0.00019294,2]
[350683564,1738060249499,-500.0,0.00019294,2]
[350683565,1738060249510,-506.44236268,0.00019294,2]
[350683566,1738060249519,-500.0,0.00019294,2]
[350683567,1738060249529,-500.0,0.00019294,2]
[350683568,1738060249539,-500.0,0.00019294,2]
[350683569,1738060249548,-500.0,0.00019294,2]
[350683570,1738060249557,-500.0,0.00019294,2]
[350683571,1738060249567,-500.0,0.00019294,2]
[350683572,1738060249577,-500.0,0.00019294,2]
[350683573,1738060249588,-500.0,0.00019294,2]
[350683574,1738060249597,-669.32,0.00019294,2]
[350683575,1738060249606,-679.54,0.00019294,2]
[350683576,1738060249616,-500.0,0.00019294,2]
[350683577,1738060249625,-500.0,0.00019294,2]
[350683578,1738060249635,-636.12647128,0.00019294,2]
[350683579,1738060249644,-500.0,0.00019294,2]
[350683580,1738060249654,-578.94479039,0.00019294,2]
[350683581,1738060249663,-500.0,0.00019294,2]
[350683582,1738060249672,-500.0,0.00019294,2]
[350683583,1738060249682,-500.0,0.00019294,2]
[350683584,1738060249691,-500.0,0.00019294,2]
[350683585,1738060249700,-500.0,0.00019294,2]
[350683586,1738060249710,-500.0,0.00019294,2]
[350683587,1738060249719,-500.0,0.00019294,2]
[350683588,1738060249729,-500.0,0.00019294,2]
[350683589,1738060249739,-500.0,0.00019294,2]
[350683590,1738060249749,-500.0,0.00019294,2]
[350683591,1738060249758,-500.0,0.00019294,2]
[350683592,1738060249767,-502.14762543,0.00019294,2]
[350683593,1738060249777,-500.0,0.00019294,2]
[350683594,1738060249786,-500.0,0.00019294,2]
[350683595,1738060249795,-500.0,0.00019294,2]
[350683596,1738060249805,-500.0,0.00019294,2]
[350683597,1738060249814,-500.0,0.00019294,2]
[350683598,1738060249823,-500.0,0.00019294,2]
[350683599,1738060249832,-526.27233763,0.00019294,2]
[350683600,1738060249841,-500.0,0.00019294,2]
[350683601,1738060249851,-500.0,0.00019294,2]
[350683602,1738060249860,-500.0,0.00019294,2]
[350683603,1738060249870,-298.95836403,0.00019294,2]
[350683604,1738060249879,-500.0,0.00019294,2]
[350683605,1738060249888,-500.0,0.00019294,2]
[350683606,1738060249897,-510.13,0.00019294,2]
[350683607,1738060249906,-500.0,0.00019294,2]
[350683608,1738060249916,-500.0,0.00019294,2]
[350683609,1738060250014,-500.0,0.00019294,2]
[350683610,1738060250025,-500.0,0.00019294,2]
[350683611,1738060250035,-500.0,0.00019294,2]
[350683612,1738060250044,-500.0,0.00019294,2]
[350683613,1738060250053,-500.0,0.00019294,2]
[350683614,1738060250062,-500.0,0.00019294,2]
[350683615,1738060250071,-1138.52,0.00019294,2]
[350683616,1738060250080,-500.0,0.00019294,2]
[350683617,1738060250089,-500.0,0.00019294,2]
[350683618,1738060250098,-500.0,0.00019294,2]
[350683619,1738060250107,-352.36306412,0.00019294,2]
[350683620,1738060250116,-500.0,0.00019294,2]
[350683621,1738060250125,-500.0,0.00019294,2]
[350683622,1738060250134,-500.0,0.00019294,2]
[350683623,1738060250143,-710.74,0.00019294,2]
[350683624,1738060250152,-500.0,0.00019294,2]
[350683625,1738060250161,-500.0,0.00019294,2]
[350683626,1738060250170,-506.16164533,0.00019294,2]
[350683627,1738060250179,-500.0,0.00019294,2]
[350683628,1738060250187,-533.64,0.00019294,2]
[350683629,1738060250196,-500.0,0.00019294,2]
[350683630,1738060250206,-507.35793996,0.00019294,2]
[350683631,1738060250215,-500.0,0.00019294,2]
[350683632,1738060250224,-517.13109089,0.00019294,2]
[350683633,1738060250233,-720.61,0.00019294,2]
[350683634,1738060250242,-500.0,0.00019294,2]
[350683635,1738060250251,-500.0,0.00019294,2]
[350683636,1738060250261,-500.0,0.00019294,2]
[350683637,1738060250270,-500.0,0.00019294,2]
[350683638,1738060250280,-500.0,0.00019294,2]
[350683639,1738060250289,-500.0,0.00019294,2]
[350683640,1738060250300,-500.0,0.00019294,2]
[350683641,1738060250311,-502.3634067,0.00019294,2]
[350683642,1738060250320,-500.0,0.00019294,2]
[350683643,1738060250331,-500.0,0.00019294,2]
[350683644,1738060250341,-500.0,0.00019294,2]
[350683645,1738060250350,-609.18,0.00019294,2]
[350683646,1738060250360,-500.0,0.00019294,2]
[350683647,1738060250369,-500.0,0.00019294,2]
[350683648,1738060250379,-1046.86,0.00019294,2]
[350683649,1738060250388,-500.0,0.00019294,2]
[350683650,1738060250397,-500.0,0.00019294,2]
[350683651,1738060250406,-1080.56,0.00019294,2]
[350683652,1738060250415,-500.0,0.00019294,2]
[350683653,1738060250424,-500.0,0.00019294,2]
[350683654,1738060250433,-500.0,0.00019294,2]
[350683655,1738060250442,-872.72,0.00019294,2]
[350683656,1738060250451,-500.0,0.00019294,2]
[350683657,1738060250461,-500.0,0.00019294,2]
[350683658,1738060250470,-500.0,0.00019294,2]
[350683659,1738060250479,-500.0,0.00019294,2]
[350683660,1738060250488,-579.0686623,0.00019294,2]
[350683661,1738060250497,-500.0,0.00019294,2]
[350683662,1738060250506,-500.0,0.00019294,2]
[350683663,1738060250515,-791.18,0.00019294,2]
[350683664,1738060250525,-500.0,0.00019294,2]
[350683665,1738060250534,-500.0,0.00019294,2]
[350683666,1738060250543,-595.88148778,0.00019294,2]
[350683667,1738060250552,-1259.0,0.00019294,2]
[350683668,1738060250561,-1508.33,0.00019294,2]
[350683669,1738060250570,-500.0,0.00019294,2]
[350683670,1738060250581,-500.0,0.00019294,2]
[350683671,1738060250591,-500.0,0.00019294,2]
[350683672,1738060250600,-500.0,0.00019294,2]
[350683673,1738060250615,-500.0,0.00019294,2]
[350683674,1738060250629,-500.0,0.00019294,2]
[350683675,1738060250648,-500.0,0.00019294,2]
[350683676,1738060250667,-500.0,0.00019294,2]
[350683677,1738060250684,-685.98,0.00019294,2]
[350683678,1738060250700,-500.0,0.00019294,2]
[350683679,1738060250718,-500.0,0.00019294,2]
[350683680,1738060250735,-501.11,0.00019294,2]
[350683681,1738060250753,-500.0,0.00019294,2]
[350683682,1738060250773,-500.0,0.00019294,2]
[350683683,1738060250787,-320.85684162,0.00019294,2]
[350683684,1738060250806,-500.0,0.00019294,2]
[350683685,1738060250820,-500.0,0.00019294,2]
[350683686,1738060250838,-500.0,0.00019294,2]
[350683687,1738060250851,-500.0,0.00019294,2]
[350683688,1738060250865,-560.06,0.00019294,2]
[350683689,1738060250880,-500.0,0.00019294,2]
[350683690,1738060250892,-500.0,0.00019294,2]
[350683691,1738060250906,-636.06,0.00019294,2]
[350683692,1738060250920,-500.0,0.00019294,2]
[350683693,1738060250933,-500.0,0.00019294,2]
[350683694,1738060250947,-329.05837817,0.00019294,2]
[350683695,1738060250963,-611.89573759,0.00019294,2]
[350683696,1738060250977,-500.0,0.00019294,2]
[350683697,1738060250990,-500.0,0.00019294,2]
[350683698,1738060251004,-913.7,0.00019294,2]
[350683699,1738060251018,-500.0,0.00019294,2]
[350683700,1738060251032,-500.0,0.00019294,2]
[350683701,1738060251048,-500.0,0.00019294,2]
[350683702,1738060251063,-500.0,0.00019294,2]
[350683703,1738060251077,-511.13210129,0.00019294,2]
[350683704,1738060251091,-500.0,0.00019294,2]
[350683705,1738060251105,-500.0,0.00019294,2]
[350683706,1738060251119,-500.0,0.00019294,2]
[350683707,1738060251133,-582.6,0.00019294,2]
[350683708,1738060251146,-500.0,0.00019294,2]
[350683709,1738060251160,-500.0,0.00019294,2]
[350683710,1738060251175,-500.0,0.00019294,2]
[350683711,1738060251188,-500.0,0.00019294,2]
[350683712,1738060251202,-500.0,0.00019294,2]
[350683713,1738060251216,-501.77675786,0.00019294,2]
[350683714,1738060251230,-500.0,0.00019294,2]
[350683715,1738060251245,-530.58,0.00019294,2]
[350683716,1738060251258,-750.64,0.00019294,2]
[350683717,1738060251273,-500.0,0.00019294,2]
[350683718,1738060251287,-500.0,0.00019294,2]
[350683719,1738060251301,-500.0,0.00019294,2]
[350683720,1738060251315,-500.0,0.00019294,2]
[350683721,1738060251328,-667.77,0.00019294,2]
[350683722,1738060251342,-948.84,0.00019294,2]
[350683723,1738060251356,-500.0,0.00019294,2]
[350683724,1738060251369,-500.0,0.00019294,2]
[350683725,1738060251384,-500.0,0.00019294,2]
[350683726,1738060251398,-501.78370378,0.00019294,2]
[350683727,1738060251411,-503.39374777,0.00019294,2]
[350683728,1738060251425,-500.0,0.00019294,2]
[350683729,1738060251440,-500.0,0.00019294,2]
[350683730,1738060251458,-777.86,0.00019294,2]
[350683731,1738060251471,-500.0,0.00019294,2]
[350683732,1738060251485,-500.0,0.00019294,2]
[350683733,1738060251500,-510.71,0.00019294,2]
[350683734,1738060251510,-500.0,0.00019294,2]
[350683735,1738060251519,-683.02,0.00019294,2]
[350683736,1738060251528,-621.96,0.00019294,2]
[350683737,1738060251536,-503.17324304,0.00019294,2]
[350683738,1738060251545,-826.17,0.00019294,2]
[350683739,1738060251554,-1436.91,0.00019294,2]
[350683740,1738060251563,-500.0,0.00019294,2]
[350683741,1738060251760,-500.0,0.00019294,2]
[350683742,1738060251784,-189.17586303,0.00019294,2]
[350683743,1738060251794,-500.0,0.00019294,2]
[350683744,1738060251803,-500.0,0.00019294,2]
[350683745,1738060251812,-500.0,0.00019294,2]
[350683746,1738060251821,-500.0,0.00019294,2]
[350683747,1738060251830,-500.0,0.00019294,2]
[350683748,1738060251840,-754.41,0.00019294,2]
[350683749,1738060251849,-536.05888226,0.00019294,2]
[350683750,1738060251858,-500.0,0.00019294,2]
[350683751,1738060251866,-892.91,0.00019294,2]
[350683752,1738060251875,-500.0,0.00019294,2]
[350683753,1738060251884,-500.0,0.00019294,2]
[350683754,1738060251893,-500.0,0.00019294,2]
[350683755,1738060251902,-500.0,0.00019294,2]
[350683756,1738060251911,-500.0,0.00019294,2]
[350683757,1738060251920,-541.13,0.00019294,2]
[350683758,1738060251928,-592.87,0.00019294,2]
[350683759,1738060251937,-562.57,0.00019294,2]
[350683760,1738060251946,-500.0,0.00019294,2]
[350683761,1738060251955,-500.0,0.00019294,2]
[350683762,1738060251964,-500.0,0.00019294,2]
[350683763,1738060251973,-500.0,0.00019294,2]
[350683764,1738060251982,-500.0,0.00019294,2]
[350683765,1738060251990,-500.0,0.00019294,2]
[350683766,1738060251999,-500.0,0.00019294,2]
[350683767,1738060252008,-722.61,0.00019294,2]
[350683768,1738060252017,-534.48,0.00019294,2]
[350683769,1738060252026,-500.0,0.00019294,2]
[350683770,1738060252035,-500.0,0.00019294,2]
[350683771,1738060252045,-500.0,0.00019294,2]
[350683772,1738060252054,-500.0,0.00019294,2]
[350683773,1738060252063,-500.0,0.00019294,2]
[350683774,1738060252072,-500.0,0.00019294,2]
[350683775,1738060252081,-500.0,0.00019294,2]
[350683776,1738060252090,-500.0,0.00019294,2]
[350683777,1738060252099,-500.0,0.00019294,2]
[350683778,1738060252108,-502.94884594,0.00019294,2]
[350683779,1738060252117,-500.0,0.00019294,2]
[350683780,1738060252127,-500.0,0.00019294,2]
[350683781,1738060252135,-500.0,0.00019294,2]
[350683782,1738060252144,-500.0,0.00019294,2]
[350683783,1738060252153,-500.0,0.00019294,2]
[350683784,1738060252162,-500.0,0.00019294,2]
[350683785,1738060252171,-500.0,0.00019294,2]
[350683786,1738060252180,-500.0,0.00019294,2]
[350683787,1738060252189,-500.0,0.00019294,2]
[350683788,1738060252198,-508.9466776,0.00019294,2]
[350683789,1738060252207,-500.0,0.00019294,2]